Cogmind - Beta 17 @@@ ROGUE MODE // 2026.07.07 @ 03:12:12 Player: TheSkyeDoctor Result: Destroyed by S-27 Virus with Autogun Performance ------------- Evolutions (4) 2000 Regions Visited (8) 1600 Robots Destroyed (41) 205 Value Destroyed (933) 933 Prototype IDs (7) 140 Alien Tech Used (0) 0 Bonus (7400) 7400 TOTAL SCORE: 12278 Bonus ------- Prayed to X0-1V1 5000 Major X0-1V1 Interference 2200 Entered Garrisons 200 Cogmind --------- Core Integrity 0/650 Matter 294/300 Energy 1499/1500 System Corruption 6% Temperature Cool (0) Movement Core (50) Location -6/Garrison Parts ------- > --- POWER (2) -------- (None) > --- PROPULSION (5) --- (None) > --- UTILITY (4) ------ Advanced Signal Interpreter > --- WEAPON (4) ------- (None) > --- INVENTORY (6) ---- Enhanced Nuclear Core Large Storage Unit Advanced Visual Processing Unit Gauss Cannon Peak State ------------ > --- POWER ------------ Light Nuclear Core > --- PROPULSION ------- Flight Unit VTOL Module VTOL Module Improved Cesium-ion Thruster Improved Cesium-ion Thruster > --- UTILITY ---------- Advanced Signal Interpreter Advanced Targeting Computer Hacking Suite X0-1V1's Piety Tracker > --- WEAPON ----------- Plasma Cannon Enhanced Coil Gun Centrium Greatsword > --- INVENTORY -------- Subdweller Power Source Enhanced Nuclear Core Wheel Large Storage Unit Advanced Visual Processing Unit Gauss Cannon [Rating: 70] Favorites ----------- Power Ion Engine Engine Ion Engine Power Core Enhanced Nuclear Core Propulsion Light Treads Treads Light Treads Wheel Wheel Hover Unit Gravmag System Flight Unit Improved Cesium-ion Thruster Utility X0-1V1's Piety Tracker Device X0-1V1's Piety Tracker Storage Small Storage Unit Processor Improved Melee Analysis Suite Hackware Hacking Suite Protection Improved Medium Armor Plating Weapon Assault Rifle Energy Gun Small Laser Energy Cannon Plasma Cannon Ballistic Gun Assault Rifle Ballistic Cannon Battle Cannon Launcher Grenade Launcher Special Weapon Mining Laser Impact Weapon Maul Slashing Weapon Greatsword Build | -11 -10 -10 -8 -7 -7 -7 -6 -6 ------- Run | Yrd Mat Sub Mat Fac Low Low Fac Gar Slots Evolved 8 | . . . 4 2 . . 2 . Power . | . . . . . . . . . Propulsion 4 | . . . 2 . . . 2 . Utility 2 | . . . . 2 . . . . Weapon 2 | . . . 2 . . . . . Parts Attached 60 | 8 2 6 3 23 1 3 11 3 Power 8 | 1 . 2 . 1 . 1 2 1 Engine 4 | 1 . 2 . . . 1 . . Core 4 | . . . . 1 . . 2 1 Reactor . | . . . . . . . . . Propulsion 13 | 2 . 1 . 6 . . 3 1 Treads 2 | 2 . . . . . . . . Leg . | . . . . . . . . . Wheel 3 | . . 1 . 2 . . . . Hover 1 | . . . . 1 . . . . Flight 7 | . . . . 3 . . 3 1 Utility 20 | 3 1 1 2 10 . 1 1 1 Device 12 | 2 1 1 . 6 . 1 . 1 Storage 2 | 1 . . 1 . . . . . Processor 4 | . . . . 3 . . 1 . Hackware 1 | . . . 1 . . . . . Protection 1 | . . . . 1 . . . . Artifact . | . . . . . . . . . Weapon 19 | 2 1 2 1 6 1 1 5 . Energy Gun 7 | 1 . . . 5 1 . . . Energy Cannon 2 | . . . . . . . 2 . Ballistic Gun 3 | 1 . . . . . . 2 . Ballistic Cannon 1 | . . 1 . . . . . . Launcher 2 | . . 1 . . . 1 . . Special Weapon 1 | . 1 . . . . . . . Impact Weapon 1 | . . . 1 . . . . . Slashing Weapon 2 | . . . . 1 . . 1 . Piercing Weapon . | . . . . . . . . . Special Melee Weapon . | . . . . . . . . . Unidentified Prototypes 7 | . 1 . . 3 . . 3 . Corrupted Parts 1 | . . . . . . . 1 . System Corruption 5 | . . . . . . . 5 . Parts Lost 42 | . . 6 5 11 . 4 3 13 Power 4 | . . 2 . . . 1 1 . Propulsion 11 | . . 2 1 1 . . 1 6 Utility 12 | . . 1 1 5 . 1 . 4 Weapon 15 | . . 1 3 5 . 2 1 3 Highest Loss Streak 13 | . . 2 5 6 . 4 3 13 To Critical Strikes . | . . . . . . . . . Average Backups 4 | 2 4 6 5 3 5 6 5 4 Power 1 | . 1 . . 1 2 2 1 . Propulsion . | . 1 . . . 1 1 . . Utility 2 | . 2 4 5 1 1 2 2 2 Weapon . | . . . . . . 1 1 1 Tool/Special . | . . . . . . . . . Unused Backups 4 | . . 1 . 1 . . . 2 Power . | . . . . . . . . . Propulsion . | . . . . . . . . . Utility 3 | . . 1 . 1 . . . 1 Weapon 1 | . . . . . . . . 1 Tool/Special . | . . . . . . . . . Average Slot Usage (%) 74 | . 100 89 43 48 84 63 68 51 Engine 7 | . 14 13 8 . . . 1 . Core 1 | . . . . 4 7 2 1 2 Treads 10 | . 28 14 . . . . . . Wheel 1 | . . 4 3 1 . . . . Flight 4 | . . . . 2 23 23 27 23 Device 12 | . 14 13 3 14 14 6 6 2 Storage 7 | . 14 14 8 1 . . . . Processor 4 | . . . . 7 15 15 12 11 Hackware 2 | . . . . 7 7 7 6 1 Energy Gun 6 | . 13 6 3 2 15 6 . . Ballistic Gun 6 | . 14 10 3 . . . 2 2 Ballistic Cannon 1 | . . 3 4 . . . . . Launcher 1 | . . 4 3 . . . . . Slashing Weapon 1 | . . . . 3 . . 2 3 Peak Build Rating 70 | 9 20 21 23 57 59 52 70 65 Average Rating 22 | 5 7 19 12 31 54 41 53 34 On Entrance 30 | . 7 20 21 6 54 52 48 65 Avg Prop Armor Cover (%) 2 | . . . . . . 2 . . Naked Turns . | . . . . . . . . . Heaviest Build 35 | 14 14 17 35 32 21 17 18 18 Greatest Support 40 | 40 40 40 10 20 18 18 24 26 Greatest Overweight (x) 10 | . . 1 9 10 1 1 . . Average Overweight (x) . | . . . 2 1 . . . . Largest Inventory Capacity 16 | 8 8 9 16 16 6 6 6 6 Average Capacity 8 | 7 8 8 13 7 6 6 6 6 Most Carried 7 | 3 7 7 7 6 6 6 6 5 Average Carried 4 | 2 4 6 5 3 5 6 5 4 Final Capacity 9 | 8 8 9 6 6 6 6 6 6 Final Carried 7 | 3 7 7 6 4 6 6 5 4 Class Distribution -------------------- 68% | Mutant 11% | Sprinter 9% | Gladiator 4% | Scavenger-Sprinter Dominant Class ---------------- Mutant | -10/Materials Mutant | -10/Subcaves Mutant | -8/Materials Mutant | -7/Factory Sprinter | -7/Lower Caves Sprinter | -7/Lower Caves Scavenger-Sprinter | -6/Factory Sprinter | -6/Garrison Resources | -11 -10 -10 -8 -7 -7 -7 -6 -6 ----------- Run | Yrd Mat Sub Mat Fac Low Low Fac Gar Matter Collected 1166 | 301 64 164 40 334 56 . 197 10 Remotely . | . . . . . . . . . Salvage Created 1712 | 163 227 320 88 334 . . 580 . Parts 91 | 12 15 26 5 11 . . 22 . Haulers Intercepted 1 | . . . . 1 . . . . Recyclers Shooed . | . . . . . . . . . Parts Field Recycled . | . . . . . . . . . Retrieved Matter . | . . . . . . . . . Parts Self-Destructed . | . . . . . . . . . Prevented . | . . . . . . . . . Parts Restored . | . . . . . . . . . Kills | -11 -10 -10 -8 -7 -7 -7 -6 -6 ------- Run | Yrd Mat Sub Mat Fac Low Low Fac Gar Combat Hostiles Destroyed 23 | . 6 8 3 3 . . 3 . Melee 4 | . . . 1 3 . . . . Guns 10 | . 6 4 . . . . . . Cannons 3 | . . . 1 . . . 2 . AOE 6 | . . 4 1 . . . 1 . Classes Destroyed 11 | 2 3 1 3 2 . . . . Worker 2 | . . . . 1 . . 1 . Builder 6 | . . . 2 3 . . 1 . Tunneler 4 | 3 1 . . . . . . . Hauler 1 | . . . . 1 . . . . Recycler 4 | 1 . . . . . . 3 . Operator 1 | . 1 . . . . . . . Swarmer 4 | . 2 . . . . . 2 . Cutter 2 | . . . 2 . . . . . Grunt 5 | . 4 . . 1 . . . . Sentry 4 | . . . 1 2 . . 1 . Subdweller 8 | . . 8 . . . . . . Best Kill Streak 5 | 2 3 2 3 4 . . 5 . Combat Bots Only 2 | . 2 2 2 1 . . 2 . Max Kills in Single Turn 1 | 1 1 1 1 1 . . 1 . Gunslinging . | . . . . . . . . . Exploded 1 | . . 1 1 . . . 1 . Melee 1 | . . . 1 1 . . . . Uniques/NPCs Destroyed . | . . . . . . . . . Combat | -11 -10 -10 -8 -7 -7 -7 -6 -6 -------- Run | Yrd Mat Sub Mat Fac Low Low Fac Gar Hostile Shots Fired 629 | . 17 43 69 196 31 52 67 154 Missed 249 | . 4 17 22 55 24 35 36 56 Hits 380 | . 13 26 47 141 7 17 31 98 Melee 3 | . . . 3 . . . . . Projectile 377 | . 13 26 44 141 7 17 31 98 AOE 2 | . . . 2 . . . . . Critical Strikes 14 | . . . 3 8 . . 2 1 Part Disruptions 1 | . . . . . . 1 . . Damage Taken 5816 | . 127 823 830 1973 103 306 390 1264 Core 2402 | . 20 165 462 1012 18 68 147 510 Absorbed by Shields 36 | . . . . . . . . 36 Ignored by Resistances 35 | . . . 8 . . . . 27 Core Remaining (%) 53 | 100 . 61 28 . . 25 . . Volleys Fired 94 | 7 23 39 7 6 . . 10 2 Largest 4 | 2 2 2 4 1 . . 1 2 Hottest 123 | 60 120 63 123 63 . . 80 110 Shots Fired 163 | 14 43 74 12 6 1 . 10 3 Gun 120 | 14 38 57 3 6 1 . . 1 Cannon 25 | . . 8 7 . . . 8 2 Launcher 13 | . . 9 2 . . . 2 . Special 5 | . 5 . . . . . . . Kinetic 78 | 7 23 39 8 . . . . 1 Thermal 69 | 7 20 26 2 3 1 . 8 2 Explosive 11 | . . 9 2 . . . . . Electromagnetic 5 | . . . . 3 . . 2 . Robot Hit Streak 15 | 5 7 15 1 4 . . 5 6 Robot Miss Streak 4 | 2 2 2 3 4 . . 4 . Penetration Max . | . . . . . . . . . Secondary Targets . | . . . . . . . . . Shots Hit Robots 123 | 10 21 58 8 14 . . 9 3 Core Hits 53 | 5 12 16 7 5 . . 8 . Critical Kills 1 | . . . 1 . . . . . Critical Parts Destroyed 1 | . . . 1 . . . . . Critical Strikes 3 | . . . 3 . . . . . Blast 1 | . . . 1 . . . . . Smash 2 | . . . 2 . . . . . Melee Attacks 33 | . . . 7 14 . . 5 7 Impact 8 | . . . 7 1 . . . . Slashing 25 | . . . . 13 . . 5 7 Piercing . | . . . . . . . . . Sneak Attacks 11 | . . . 1 5 . . 5 . Combat Hostiles . | . . . . . . . . . Follow-up Attacks . | . . . . . . . . . Damage Inflicted 3540 | 123 266 895 412 889 . . 885 70 Guns 913 | 123 266 446 . 59 . . . 19 Cannons 262 | . . 43 67 . . . 101 51 Explosions 567 | . . 406 104 . . . 57 . Melee 1779 | . . . 241 811 . . 727 . Ramming 19 | . . . . 19 . . . . Kinetic 596 | 66 158 286 67 . . . . 19 Thermal 570 | 57 108 203 . 50 . . 101 51 Explosive 510 | . . 406 104 . . . . . Electromagnetic 66 | . . . . 9 . . 57 . Impact 317 | . . . 241 76 . . . . Slashing 1462 | . . . . 735 . . 727 . Piercing . | . . . . . . . . . Highest Corruption 12 | . . . 2 4 11 12 6 6 Average Corruption 4 | . . . 2 3 11 11 5 6 Corruption Purged 4 | . . . . 4 . . . . Corruption Blocked . | . . . . . . . . . Effects 29 | . . . 4 11 . 6 4 4 Message Errors 8 | . . . 1 4 . . 1 2 Matter Fused 8 | . . . 2 1 . 2 2 1 Heat Flow Errors 2 | . . . . 2 . . . . Energy Discharges 1 | . . . . 1 . . . . Parts Rejected 1 | . . . 1 . . . . . Data Loss (minor) 3 | . . . . 3 . . . . Data Loss (major) 2 | . . . . . . 1 1 . Misdirections 3 | . . . . . . 3 . . Weapon Failures 1 | . . . . . . . . 1 Overload Shots . | . . . . . . . . . Overflow Damage 622 | . . . 81 210 . . 331 . Projectiles . | . . . . . . . . . Explosions 10 | . . . . . . . 10 . Melee 612 | . . . 81 210 . . 321 . Knockbacks 3 | . . . 2 1 . . . . Impact 2 | . . . 1 1 . . . . Kinetic . | . . . . . . . . . Secondary 1 | . . . 1 . . . . . Self-Inflicted Damage 40 | . . 15 . 5 . . 20 . Shots 2 | . . 1 . . . . 1 . Rammed 16 | . . . . 16 . . . . Targets Rammed 16 | . . . . 16 . . . . Kicked . | . . . . . . . . . Crushed . | . . . . . . . . . Highest Temperature 468 | . 100 173 45 204 12 . 468 18 Average Temperature 66 | . 31 95 16 51 9 . 115 8 Received Heat Transfer 916 | . 54 126 171 395 42 . 78 50 Effects 3 | . . . . . . . 3 . Energy Bleed 2 | . . . . . . . 2 . Short Circuit 1 | . . . . . . . 1 . Siege Activations . | . . . . . . . . . Martial Activations . | . . . . . . . . . Shielding Activations . | . . . . . . . . . Robots Disrupted . | . . . . . . . . . Combat Hostiles . | . . . . . . . . . Robots Corrupted 2 | . . . 1 1 . . . . Combat Hostiles . | . . . . . . . . . Parts Fried 7 | . . . 3 4 . . . . Impact Corruptions 5 | . . . 3 2 . . . . Robots Melted . | . . . . . . . . . Combat Hostiles . | . . . . . . . . . Parts Melted 3 | . 1 2 . . . . . . Heat Transferred 1261 | 125 250 475 . 111 . . 200 100 Parts Sabotaged . | . . . . . . . . . Parts Stolen . | . . . . . . . . . Parts Stripped . | . . . . . . . . . Power Chain Reactions . | . . . . . . . . . Alert | -11 -10 -10 -8 -7 -7 -7 -6 -6 ------- Run | Yrd Mat Sub Mat Fac Low Low Fac Gar Maximum Alert Level . | . . . . . . . . . Low Security (%) 100 | 100 100 . 100 100 . . 100 100 Level 1 . | . . . . . . . . . Level 2 . | . . . . . . . . . Level 3 . | . . . . . . . . . Level 4 . | . . . . . . . . . Level 5 . | . . . . . . . . . High Security . | . . . . . . . . . Max Security . | . . . . . . . . . Peak Influence 139 | 10 90 . 36 36 . . 139 91 Initial 79 | . . . . 4 . . 18 79 Average 20 | 1 20 . 15 5 . . 105 46 Influence Increases 879 | 20 160 . 97 159 105 60 206 72 Destroy 0b10 Robot/C 300 | . 120 . 60 60 . . 60 . Destroy 0b10 Robot/NC 90 | 20 10 . 10 25 . . 25 . Destroy Leader 72 | . 30 . 20 22 . . . . Successful Hack 17 | . . . . 5 . . . 12 Disable Machine 15 | . . . . . . . 15 . Destroy Structure 10 | . . . 7 2 . . 1 . Partial Spotted 30 | . . . . 15 . . 15 . Lose Combat Pursuer 345 | . . . . 30 105 60 90 60 Influence Decreases 858 | 20 160 . 86 156 44 105 122 165 Entered New Map 75 | . . . . 7 6 15 12 35 Time Decay 553 | 20 160 . 76 129 38 50 80 . Lost Part 220 | . . . 10 10 . 40 30 130 Lost Ally 10 | . . . . 10 . . . . Squads Dispatched 7 | . 3 . 1 2 . . 1 . Investigation . | . . . . . . . . . Extermination 1 | . . . . 1 . . . . Reinforcement 6 | . 3 . 1 1 . . 1 . Assault . | . . . . . . . . . Garrison . | . . . . . . . . . Intercept . | . . . . . . . . . Searches Triggered . | . . . . . . . . . Construction Impeded . | . . . . . . . . . Haulers Reinforced . | . . . . . . . . . Active Scanning Responses . | . . . . . . . . . Cargo Convoy Interrupts . | . . . . . . . . . Stealth | -11 -10 -10 -8 -7 -7 -7 -6 -6 --------- Run | Yrd Mat Sub Mat Fac Low Low Fac Gar Distress Signals 1 | . . . . 1 . . . . Communications Jammed . | . . . . . . . . . Distress Signals . | . . . . . . . . . Times Spotted 89 | . 9 8 7 15 12 6 17 15 Peak Tracking Total 10 | . 2 2 4 6 8 6 4 10 Tactical Retreats 9 | . . . . 1 3 1 2 2 Traps | -11 -10 -10 -8 -7 -7 -7 -6 -6 ------- Run | Yrd Mat Sub Mat Fac Low Low Fac Gar Traps Triggered 8 | . . 3 . 4 . . . 1 Indirectly . | . . . . . . . . . Trap Hack Attempts . | . . . . . . . . . Triggered . | . . . . . . . . . Disarmed . | . . . . . . . . . Reprogrammed . | . . . . . . . . . Reused . | . . . . . . . . . Traps Extracted . | . . . . . . . . . Installed . | . . . . . . . . . Triggered . | . . . . . . . . . Machines | -11 -10 -10 -8 -7 -7 -7 -6 -6 ---------- Run | Yrd Mat Sub Mat Fac Low Low Fac Gar Machines Disabled 1 | . . . . . . . 1 . Max in Single Turn 1 | . . . . . . . 1 . Machines Repaired . | . . . . . . . . . Machines Dismantled . | . . . . . . . . . Machines Sabotaged . | . . . . . . . . . Overloaded Fab Kills . | . . . . . . . . . Hacking | -11 -10 -10 -8 -7 -7 -7 -6 -6 --------- Run | Yrd Mat Sub Mat Fac Low Low Fac Gar Machines Accessed 7 | . . . . 4 1 . 1 1 Terminals 1 | . . . . . . . . 1 Fabricators 1 | . . . . 1 . . . . Repair Stations . | . . . . . . . . . Recycling Units . | . . . . . . . . . Scanalyzers 1 | . . . . 1 . . . . Garrison Access 3 | . . . . 2 . . 1 . Total Hacks 12 | . . . . 9 1 . 1 1 Successful 5 | . . . . 2 1 . 1 1 Failed 7 | . . . . 7 . . . . Catastrophic . | . . . . . . . . . Database Lockouts . | . . . . . . . . . Manual 1 | . 1 . . . . . . . Terminals 1 | . . . . . . . . 1 Fabricators 3 | . . . . 3 . . . . Repair Stations . | . . . . . . . . . Recycling Units . | . . . . . . . . . Scanalyzers 1 | . . . . 1 . . . . Garrison Access 6 | . . . . 5 . . 1 . Terminal Hacks 2 | . . . . . 1 . . 1 Open Door 1 | . . . . . 1 . . . Garrison Registry 1 | . . . . . . . . 1 Fabricator Hacks 1 | . . . . 1 . . . . Build 1 | . . . . 1 . . . . Repair Station Hacks . | . . . . . . . . . Recycling Unit Hacks . | . . . . . . . . . Scanalyzer 1 | . . . . 1 . . . . Retrieve Study 1 | . . . . 1 . . . . Garrison Access Hacks 1 | . . . . . . . 1 . Unlock Access 1 | . . . . . . . 1 . Unauthorized Hacks . | . . . . . . . . . Terminals . | . . . . . . . . . Fabricators . | . . . . . . . . . Repair Stations . | . . . . . . . . . Recycling Units . | . . . . . . . . . Scanalyzers . | . . . . . . . . . Garrison Access . | . . . . . . . . . Data Cores Recovered . | . . . . . . . . . Used . | . . . . . . . . . Hacking Detections 3 | . . . . 3 . . . . Full Trace Events . | . . . . . . . . . Feedback Events . | . . . . . . . . . Feedback Blocked . | . . . . . . . . . Robot Schematics Acquired . | . . . . . . . . . Robots Built 2 | . . . . 2 . . . . Authchips . | . . . . . . . . . Time 116 | . . . . 116 . . . . Total Robot Build Rating 6 | . . . . 6 . . . . Part Schematics Acquired . | . . . . . . . . . Parts Built . | . . . . . . . . . Authchips . | . . . . . . . . . Time . | . . . . . . . . . Total Part Build Rating . | . . . . . . . . . Part Studies Acquired 1 | . . . . 1 . . . . Parts Repaired . | . . . . . . . . . Time . | . . . . . . . . . Parts Recycled . | . . . . . . . . . Recycled Matter . | . . . . . . . . . Retrieved Matter . | . . . . . . . . . Retrieved Components . | . . . . . . . . . Parts Scanalyzed . | . . . . . . . . . Part Schematics Acquired . | . . . . . . . . . Parts Damaged . | . . . . . . . . . Bothacking | -11 -10 -10 -8 -7 -7 -7 -6 -6 ------------ Run | Yrd Mat Sub Mat Fac Low Low Fac Gar Used RIF Installer . | . . . . . . . . . Robots Hacked . | . . . . . . . . . Non-combat . | . . . . . . . . . Combat . | . . . . . . . . . Robot Hacks Applied . | . . . . . . . . . Relay Couplers Released . | . . . . . . . . . Fabnet Peak Effective % . | . . . . . . . . . Robots Rewired . | . . . . . . . . . Allies Hacked . | . . . . . . . . . Hacks Repelled . | . . . . . . . . . Allies | -11 -10 -10 -8 -7 -7 -7 -6 -6 -------- Run | Yrd Mat Sub Mat Fac Low Low Fac Gar Total Allies 2 | . . . . 2 . . . . Largest Group 2 | . . . . 2 . . . . Highest-Rated Group 26 | . . . . 26 . . . . Highest-Rated Ally 13 | . . . . 13 . . . . Total Orders . | . . . . . . . . . Ally Attacks . | . . . . . . . . . Total Damage . | . . . . . . . . . Kills . | . . . . . . . . . Allies Corrupted . | . . . . . . . . . Allies Melted . | . . . . . . . . . X0-1V1 Amusement Gains 180 | . 15 20 25 85 . 10 5 20 Good Acts 25 | . . 3 2 6 2 2 6 4 Bad Acts 23 | . . 4 . 6 6 2 3 2 Intel | -11 -10 -10 -8 -7 -7 -7 -6 -6 ------- Run | Yrd Mat Sub Mat Fac Low Low Fac Gar Active Infowar (turns) 1053 | 35 791 . . 227 . . . . Terrain 21 | 5 . . . 16 . . . . Seismic 1032 | 30 791 . . 211 . . . . Robot Analysis Total . | . . . . . . . . . Derelict Logs Recovered 4 | . . 2 . . 2 . . . Drone Launches . | . . . . . . . . . Drone Recoveries . | . . . . . . . . . Exploration | -11 -10 -10 -8 -7 -7 -7 -6 -6 ------------- Run | Yrd Mat Sub Mat Fac Low Low Fac Gar Turns Passed 3298 | 170 794 801 205 837 128 108 161 94 Spaces Moved 2817 | 89 115 525 100 696 410 349 359 174 Core 383 | 6 . . 33 288 . . . 56 Treads 463 | 83 115 265 . . . . . . Legs . | . . . . . . . . . Wheels 396 | . . 260 67 69 . . . . Hover 42 | . . . . 42 . . . . Flight 1533 | . . . . 297 410 349 359 118 Fastest Speed 24 | 50 160 80 50 29 29 29 24 24 Average Speed 78 | 152 160 127 157 96 30 29 25 34 Slowest Speed 550 | 160 160 160 500 550 94 97 32 50 Overloaded Moves . | . . . . . . . . . Propulsion Burnouts . | . . . . . . . . . Robots Hopped 15 | . . . . 3 . 4 4 4 Potential Cave-ins 5 | . . . . . . 5 . . Cave-ins Triggered . | . . . . . . . . . Exploration Rate (%) 29 | 5 22 36 19 28 65 47 9 38 Regions Visited 8 Branch Regions 3 Pre-discovered Areas 1 | . . 1 . . . . . . Known Exits Taken 2 | . . . . . 1 . 1 . Unknown Exits Taken 6 | 1 1 1 1 1 . 1 . . Scrap Searched 4 | . . . . . 3 1 . . Spaces Dug 3 | . 1 . . 2 . . . . Terrain Destroyed 39 | . 1 30 6 2 . . . . Melee 2 | . . . . 2 . . . . Projectile 2 | . 1 . 1 . . . . . AOE 35 | . . 30 5 . . . . . Terrain Rammed . | . . . . . . . . . Walls Destroyed . | . . . . . . . . . Machines Disabled . | . . . . . . . . . Actions | -11 -10 -10 -8 -7 -7 -7 -6 -6 --------- Run | Yrd Mat Sub Mat Fac Low Low Fac Gar Total 3606 | 106 671 577 123 785 413 347 401 183 Wait 553 | . 528 2 . 11 . . 12 . Move 2776 | 88 114 524 99 689 409 340 351 162 Hop 15 | . . . . 3 . 4 4 4 Pick Up 20 | 2 4 3 1 7 2 . 1 . Fast Attach 49 | 8 . 3 1 21 1 3 11 1 Attach 20 | . . 3 4 11 . . . 2 Detach 11 | 1 . 1 2 5 . . 1 1 Swap 4 | . 2 1 1 . . . . . Drop 11 | . . 1 1 2 1 . 6 . Fire 94 | 7 23 39 7 6 . . 10 2 Melee 33 | . . . 7 14 . . 5 7 Ram 16 | . . . . 16 . . . . Kick . | . . . . . . . . . Crush . | . . . . . . . . . Escape Stasis 4 | . . . . . . . . 4 Rewire . | . . . . . . . . . Trap . | . . . . . . . . . Miscellaneous . | . . . . . . . . . Route ------- -11/Scrapyard -10/Materials (discovered 2 exits: [*Min] / [*Sub]) -10/Subcaves -8/Materials (discovered 2 exits: *Fac / Sto) -7/Factory -7/Lower Caves -7/Lower Caves -6/Factory -6/Garrison (discovered 3 exits: *Fac x3) History --------- Turn | Location | Event 47 | -11/Scrapyard | Discovered new exit (range 16) 171 | -11/Scrapyard | Entered Materials 172 | -10/Materials | Met a group of wandering Federalists 246 | -10/Materials | Lost 3 allies 249 | -10/Materials | Discovered new exit (range 5) 296 | -10/Materials | Lost 3 allies 305 | -10/Materials | Build established: Mutant 386 | -10/Materials | Discovered new exit (range 5) 961 | -10/Materials | Prayed at D.C.S.S. Altar Unit 965 | -10/Materials | Entered Subcaves 966 | -10/Subcaves | Approached by a straggling Scientist 991 | -10/Subcaves | Learned Materials terminal intel 1131 | -10/Subcaves | Core integrity permanently improved by X0-1V1 (+200) 1221 | -10/Subcaves | Inventory capacity permanently improved by X0-1V1 (+1; -100 max core) 1580 | -10/Subcaves | Learned location of Zion (-6) 1580 | -10/Subcaves | Met a Zionite searching for "candidates" 1628 | -10/Subcaves | Discovered new exit (range 9) 1766 | -10/Subcaves | Entered Materials 1766 | -8/Materials | Evolved 4 slots: Propulsion x2, Weapon x2 1767 | -8/Materials | Identified exit to Storage 1768 | -8/Materials | Loaded intel: 12 terminal locations 1856 | -8/Materials | X0-1V1 whisked you away to safety 1879 | -8/Materials | Lost 5 parts (1n1u3w) 1880 | -8/Materials | Discovered new exit (range 16) 1949 | -8/Materials | Core integrity fell below 50% 1971 | -8/Materials | Entered Factory 1971 | -7/Factory | Evolved 2 slots: Utility x2 2063 | -7/Factory | X0-1V1 activates XOMVISION 2107 | -7/Factory | X0-1V1 mutated your Propulsion slot to Utility slot 2234 | -7/Factory | Core integrity fell below 50% 2247 | -7/Factory | Lost 6 parts (5u1w) 2251 | -7/Factory | Core integrity fell below 20% 2260 | -7/Factory | X0-1V1 rescued you from certain death 2611 | -7/Factory | Build established: Gladiator 2625 | -7/Factory | Fabricated W-25 Informer? 2713 | -7/Factory | Energy capacity permanently improved by X0-1V1 (+600; -300 max core) 2804 | -7/Factory | Discovered new exit (range 16) 2808 | -7/Factory | Entered Lower Caves 2823 | -7/Lower Caves | Encountered a Warlord checkpoint 2851 | -7/Lower Caves | Attracted the attention of an 0b10 checkpoint 2887 | -7/Lower Caves | Learned Factory trap positions 2904 | -7/Lower Caves | Identified exit to Lower Caves 2904 | -7/Lower Caves | X0-1V1 revealed exit location to -7/Lower Caves 2923 | -7/Lower Caves | X0-1V1 mutated your Utility slot to Power slot 2929 | -7/Lower Caves | Learned 4 Factory zone layouts 2932 | -7/Lower Caves | System corruption reached 10% 2936 | -7/Lower Caves | Entered another Lower Caves area 2977 | -7/Lower Caves | X0-1V1 vaporized surrounding terrain (radius 20) 3012 | -7/Lower Caves | Lost 4 parts (1p1u2w) 3036 | -7/Lower Caves | Discovered new exit (range 13) 3044 | -7/Lower Caves | Entered Factory 3044 | -6/Factory | Evolved 2 slots: Propulsion x2 3046 | -6/Factory | Loaded intel: 72 trap records 3072 | -6/Factory | X0-1V1 downgraded hostiles (x2) 3084 | -6/Factory | X0-1V1 redirected Transport squads to designated parking area 3100 | -6/Factory | X0-1V1 foreshadows a heat wave 3103 | -6/Factory | Lost 3 parts (1p1n1w) 3124 | -6/Factory | X0-1V1 sent you to a vault 3178 | -6/Factory | Ambient heat levels rising (+10) 3205 | -6/Factory | Identified exit to Garrison 3205 | -6/Factory | Entered Garrison 3210 | -6/Garrison | X0-1V1 sent hostile S-27 Virus (x3) 3211 | -6/Garrison | Discovered new exit (range 69) 3211 | -6/Garrison | Discovered new exit (range 61) 3211 | -6/Garrison | Discovered new exit (range 44) 3251 | -6/Garrison | Core integrity fell below 50% 3259 | -6/Garrison | Identified exit to Factory 3260 | -6/Garrison | Attempted to access garrison exit controls, blocked by remote lockdown 3261 | -6/Garrison | X0-1V1 downgraded hostiles (x1) 3284 | -6/Garrison | X0-1V1 activates XOMVISION 3293 | -6/Garrison | Core integrity fell below 20% 3299 | -6/Garrison | Destroyed by S-27 Virus with Autogun Last Messages --------------- 03264_ Nuclear Pulse Thruster destroyed. 03265_ S-27 Virus destroyed. 03265_ Acquired 10 matter. 03269_ Slug penetrates Wall. 03270_ Imp. Cesium-ion Thruster destroyed. 03271_ Flight Unit destroyed. 03272_ EEDYFNMOF29&HMG,%R||3ZM 03274_ X0-1V1's Piety Tracker destroyed. 03275_ X0-1V1 is amused. 03275_ Adv. Targeting Computer destroyed. 03276_ X0-1V1 makes important surrounding features appear closer to you (+3 sight range). 03284_ Suggestive images of robots vie for attention in your data streams. 03284_ X0-1V1: "Enjoy your XOMVISION!" 03293_ X0-1V1 manipulates the space around you (+23% KI resistance). 03294_ System corrupted: Matter fused (-6). 03299_ X0-1V1 snickers! Map ----- +----------------------------------------------------+ | ??????#######??????# +^ ^+ #??? | | ???????????????????##### ### #### | | ???????????????????????#!! !!#?# | | ???????????????????????#!! !!#?###### | | ???????????????????????###+###??????? | | ?????????????????????????# #????????? | | ?????????????????????????###????????? | | ????????????????????????????????????? | | ????????????????????????????????????? | | ????????????????????????????????????? | | ????????????????????????????????????? | | ?????????????????????????????????#### | | ???????###########???????????????# | | ???????#"""""""""#???????????????# | | ???????#"!!=!=*!"#???????????????# # | | ???????## ##???????????????# # | | ???????## #####^##???????????????# # | | ???????# + + #???????????????# # | | ???????## ##### ##???????????????# | | ????????# #????????????????# # | | ????????## ^##????????????????# # | | ?????????##### #?????????????????# # | | ??????????####+###################++# | | ??????????# ss | | ??????????# ss | | ??????????# @ s | | ??????????# < #################### # | | ??????????# #??????????????????# # | | ??????????#####??????????????????# " | | ?????????????????????????????????# " | | ?????????????????????????????????# " | | ?????????????????????????????????# # | | ?????????????????????????????????# # | | ?????????????????????????????????# # | | ?????????????????????????????????#^^# | | ?????????????????????????????????#^^# | | ?????????????????????????????????# | | ?????????????????????????????????# | | ?????????????????????????????????# | | ?????????????????????????????????# # | | ?????????????????????????????????# # | | ?????????????????????????????????#### | | ????????????????????????????????????? | | ????????????????????????????????????? | | ????????????????????????????????????? | | ????????????????????????????????????? | | ????????????????????????????????????? | | ????????????????????????????????????? | | ????????????????????????????????????? | | ????????????????????????????????????? | +----------------------------------------------------+ Best States ------------- Heat Dissipation 48 Energy Generation 19 Energy Capacity 1700 Matter Stores 300 Matter Capacity 900 Sight Range 19 Terrain Scan Range 16 Terrain Scan Density 210 Armor Coverage 225 Resistance: KI 26 Evasion (%) 65 Targeting Accuracy 8 Melee Accuracy 6 Recoil Reduction 2 Offensive Hacking 10 Item Schematics ----------------- None Robot Schematics ------------------ None Fabricated ------------ W-25 Informer | x2 | -7/Factory | Preloaded Repaired ---------- Nothing Studied --------- Greatsword | -7/Factory | Hacked Alien Tech Used ----------------- None Achievements -------------- None Challenges ------------ None Game ------ Seed AntimissileSuperchargedPit Manual? 0 Play Time 00:28:44 Cumulative 117.0 hours Start 2026.07.07 @ 02:43:50 End 2026.07.07 @ 03:12:12 Sessions 1 Manual Loads 0 Difficulty Rogue Special Mode None Game No. 249 Rogue 249 Adventurer 0 Explorer 0 Win Type - Total 0 Types 0/0/0/0/0/0/0/0/0/0 Lore% 50 Gallery% 51 Achievement% 41 Wizard Run 0 Options --------- Layout 2 ASCII 0 Keyboard 1 Movement Arrows Keybinds 0 Fullscreen 1 Font 24/Smallcaps Map View 50x44 Zoom Use 0% Tactical HUD 1 Map Filters NONE Filters NONE Steam 1 RUN: 0d0a1377-33cb-4a80-adc5-aa87a65e63ca